{"text_format":"1","workbook":"xlsx","n_sheets":5,"sheets":["Меню","Запрос на выдачу ТУ юр лицо","Запрос на выдачу ТУ ИП","Запрос на выдачу ТУ физ лицо","Списки"],"not_rendered":{"charts":0,"images":0,"macros":0,"external_links":0,"defined_names":3,"comments":0,"pivot_tables":0},"unopened":[],"bounds":{"document_bytes":16777216,"sheet_cells":100000,"rows_first":2000,"rows_last":500,"rows_between":2000,"halvings":0,"cell_chars":16384,"cell_head_chars":4096},"cells_cut":0,"cells_raw":0,"read":"whole","date_system":"1900"}

{"sheet":"Меню","index":0,"n_rows":7,"n_cols":2,"rows_kept":7,"cut":false,"hidden":false,"merged":[]}
[]
[null,"Выберите нужный вариант:"]
[null,"Предоставление Технических условия подключения и информации о плате за подключение объекта капитального строительства  к тепловым сетям ООО \"ТСК Мосэнерго\""]
[null,"Форма запроса в случае если Вы:"]
[null,"Юридическое лицо"]
[null,"Индивидуальный предпринматель"]
[null,"Физическое лицо"]

{"sheet":"Запрос на выдачу ТУ юр лицо","index":1,"n_rows":118,"n_cols":12,"rows_kept":118,"cut":false,"hidden":false,"merged":[[9,1,9,10],[41,2,41,10],[110,2,110,9],[98,2,98,9],[99,2,99,9],[100,2,100,9],[101,2,101,9],[31,2,31,10],[83,2,83,9],[22,2,22,7],[24,2,24,7],[43,2,43,10],[45,2,45,10],[76,1,76,10],[49,1,49,10],[74,1,74,2],[114,9,114,10],[115,2,115,3],[115,9,115,10],[93,2,93,9],[94,2,94,9],[109,2,109,9],[108,2,108,9],[107,2,107,9],[106,2,106,9],[105,2,105,9],[104,2,104,9],[95,2,95,9],[96,2,96,9],[97,2,97,9],[103,2,103,9],[113,2,113,10],[85,2,85,9],[87,2,87,9],[102,2,102,9],[33,2,33,4],[35,2,35,4],[35,7,35,10],[39,2,39,5],[39,7,39,10],[68,1,68,10],[74,4,74,10],[70,8,70,9],[79,1,79,10],[70,1,70,7],[81,1,81,10],[27,0,28,0],[27,9,27,10],[27,11,28,11],[28,2,28,10],[18,11,20,11],[20,2,20,10],[21,2,21,4],[21,6,21,10],[18,1,18,10],[26,2,26,10],[2,7,2,10],[15,1,16,1],[15,2,16,2],[15,4,16,5],[15,6,16,6],[7,1,7,10],[10,6,10,7],[4,1,4,10],[12,6,12,7],[8,1,8,10],[10,1,12,2],[15,7,16,9],[10,8,10,9],[12,8,12,9],[5,1,5,10],[6,1,6,10]]}
[]
[null,"НА БЛАНКЕ ОРГАНИЗАЦИИ для юридического лица",null,null,null,null,null,null,null,null,null,"Комментарии для заполнения:"]
[null,null,null,null,null,null,null,"Генеральному директору\nООО \"ТСК Мосэнерго\"\nД.В. Горяинову"]
[]
[null,"ЗАПРОС О ПРЕДОСТАВЛЕНИИ ТЕХНИЧЕСКИХ УСЛОВИЙ  ПОДКЛЮЧЕНИЯ К СИСТЕМЕ ТЕПЛОСНАБЖЕНИЯ ООО \"ТСК МОСЭНЕРГО\"\nИ ИНФОРМАЦИИ О ПЛАТЕ ЗА ПОДКЛЮЧЕНИЕ ОБЪЕКТА КАПИТЕЛЬНОГО СТРОИТЕЛЬСТВА К СЕТЯМ ООО \"ТСК МОСЭНЕРГО\""]
[null,"(для юридического лица)"]
[null,"Уважаемый Денис Викторович!"]
[null,"Прошу Вас подготовить и выдать технические условия подключения к системе теплоснабжения ООО \"ТСК Мосэнерго\" реконструируемого / проектируемого объекта капитального строительства:"]
[]
[null,"(наименование объекта)"]
[null,"с планируемой величиной необходимой подключаемой нагрузки",null,null,"с учетом ГВС макс",null,null,null,"Гкал / час"]
[]
[null,null,null,null,"с учетом ГВС ср",null,null,null,"Гкал / час"]
[]
[null,"в связи с:"]
[null,"необходимостью подключения нового объекта",null,null,"увеличением тепловой нагрузки или тепловой мощности подключаемого объекта",null,null,"реконструкцией или модернизацией объекта без увеличения тепловой нагрузки или тепловой мощности",null,null,null,"Необходимо выбрать нужный вариант"]
[]
[]
[null,"1. Сведения о заявителе:"]
[]
[null,"Полное наименование организации"]
[]
[null,"Ф.И.О. руководителя организации"]
[]
[null,"Должность руководителя организации"]
[]
[null,"Местонахождение","Индекс, город, улица, дом, строение, корпус, владение"]
[]
[null,"Почтовый адрес","Индекс, город, улица, дом, строение, корпус, владение"]
[]
[]
[null,"Контактное лицо (Ф.И.О.)"]
[]
[null,"Контактный телефон организации",null,null,null,"Факс"]
[]
[null,"Контактный телефон мобильный",null,null,null,null,"e-mail"]
[]
[null,"2. Местонахождение подключаемого объекта"]
[]
[null,"Город",null,null,null,null,"Район"]
[]
[null,"Область"]
[]
[null,"Населённый пункт"]
[]
[null,"Улица"]
[]
[null,"Дом",null,null,"Владение",null,"Корпус",null,null,"Строение"]
[]
[null,"3. Технические параметры подключаемого объекта (заполняется при наличии соответствующей информации)"]
[null,"3.1 Таблица тепловых нагрузок по видам потребления",null,null,null,null,null,null,"поле не заполняется"]
[null,"(Заполняется одна из двух таблиц)"]
[null,"Для неподключенных строящихся (построенных) объектов:",null,null,null,null,null,null,"поле считается автоматически"]
[]
[null,"Наименование","Отопление","Вентиляция","Тепловые завесы","ГВС ср.","ГВС макс.","Кондиционирование","Прочее","Всего (с учетом ГВС ср.)","Всего (с учетом ГВС макс)"]
[null,"Тепловая нагрузка, Гкал / час",0,0,0,0,0,0,0,{"$f":"C56+D56+E56+F56+H56+I56","v":0},{"$f":"C56+D56+E56+G56+H56+I56","v":0}]
[null,"Температурный график"]
[null,"Схема подключения "]
[]
[null,"Для реконструируемых объектов:"]
[]
[null,"Наименование","Отопление","Вентиляция","Тепловые завесы","ГВС ср.","ГВС макс.","Кондиционирование","Прочее","Всего (с учетом ГВС ср.)","Всего (с учетом ГВС макс)"]
[null,"Тепловая нагрузка существующая, Гкал / час",0,0,0,0,0,0,0,{"$f":"C63+D63+E63+F63+H63+I63","v":0},{"$f":"C63+D63+E63+G63+H63+I63","v":0}]
[null,"Тепловая нагрузка после реконструкции, Гкал / час",0,0,0,0,0,0,0,{"$f":"C64+D64+E64+F64+H64+I64","v":0},{"$f":"C64+D64+E64+G64+H64+I64","v":0}]
[null,"Тепловая нагрузка дополнительная, Гкал / час",{"$f":"C64-C63","v":0},{"$f":"D64-D63","v":0},0,0,0,0,0,{"$f":"J64-J63","v":0},{"$f":"K64-K63","v":0}]
[null,"Температурный график"]
[null,"Схема подключения"]
[]
[null,"ВАЖНО: При подключении или реконструкции нескольких объектов (зданий/корпусов), подключенных от одного абонента, в Таблицу необходимо свести все  объекты по аналогии."]
[]
[null,"3.2 Планируемый срок ввода в эксплуатацию объекта капитального строительства \n(при наличии соответствующей информации)",null,null,null,null,null,null,"мм.гг"]
[]
[null,"3.3 Назначение объекта:"]
[]
[null,null,null,null,{"$f":"IF(B75=Списки!B25,Списки!C25,IF(B75=Списки!B26,Списки!C26,IF(B75=Списки!B27,Списки!C27,IF(B75=Списки!B28,Списки!C28,IF(B75=Списки!B29,Списки!C29,IF(B75=Списки!B30,Списки!C30,IF(B75=Списки!B31,Списки!C31,IF(B75=Списки!B32,Списки!C32,IF(B75=Списки!B33,Списки!C33,IF(B75=Списки!B34,Списки!C34,IF(B75=Списки!B35,Списки!C35,IF(B75=Списки!B36,Списки!C36,IF(B75=Списки!B37,Списки!C37,IF(B75=Списки!B38,Списки!C38,IF(B75=Списки!B39,Списки!C39,IF(B75=Списки!B40,Списки!C40,IF(B75=Списки!B41,Списки!C41,IF(B75=Списки!B42,Списки!C42,IF(B75=Списки!B43,Списки!C43,IF(B75=Списки!B44,Списки!C44,IF(B75=Списки!B45,Списки!C45,IF(B75=Списки!B46,Списки!B46,IF(B75=Списки!B47,Списки!C47,IF(B75=Списки!B48,Списки!C48,))))))))))))))))))))))))","v":"-"},null,null,null,null,null,null,"Необходимо выбрать из выпадающего списка"]
[]
[null,"4. Прошу предоставить информацию о плате за подключение объекта капитального строительства к системе теплоснабжения ООО \"ТСК Мосэнерго\"",null,null,null,null,null,null,null,null,null,"Необходимо выбрать нужный вариант"]
[]
[null,"Да",null,"Нет"]
[null,"Информация включает в себя данные о тарифе на подключение, утвержденном на момент выдачи технических условий в установленном законодательством Российской Федерации порядке; дату окончания срока действия указанного тарифа (если период действия этого тарифа истекает ранее окончания срока действия технических условий); дату повторного обращения за информацией о плате за подключение (если на момент выдачи технических условий тариф на подключение на период их действия не установлен)"]
[]
[null,"5. О готовности Технических условий подключения прошу уведомить меня:",null,null,null,null,null,null,null,null,null,"Необходимо выбрать нужный вариант"]
[]
[null,"по телефону:"]
[]
[null,"по электронной почте по адресу:"]
[]
[null,null,"В случае если Заявитель будет недоступен по вышеуказанному контакту, Технические условия подключения будут отправлены почтой по почтовому адресу, указанному в Разделе 1 настоящего Запроса"]
[]
[]
[]
[]
[null,null,"Перечень необходимых документов для выдачи Технических условий подключения:"]
[null,1,"Заверенные копии учредительных документов:"]
[null,"-","устав юридического лица (в том числе все изменения и дополнения к нему);"]
[null,"-","свидетельство о государственной регистрации юридического лица;"]
[null,"-","свидетельство о внесении записи в единый государственный реестр юридических лиц о юридическом лице (далее – ЕГРЮЛ), зарегистрированном до 01.07.2002, в случае создания контрагента до 01.07.2002;"]
[null,"-","свидетельство о постановке юридического лица на учет в налоговом органе;"]
[null,2,"Документы, подтверждающие полномочия лица, подписавшего запрос:"]
[null,"-","документ о назначении руководителя юридического лица;"]
[null,"-","приказ о вступлении в должность руководителя юридического лица;"]
[null,"-","доверенность представителя контрагента на право подписания запроса (в случае подписания запроса лицом, действующим на основании доверенности)."]
[null,3,"Правоустанавливающие документы на земельный участок (для правообладателя земельного участка)."]
[null,4,"Информация о границах земельного участка, на котором планируется осуществить строительство объекта капитального строительства или на котором расположен реконструируемый объект капитального строительства."]
[null,5,"Информация о разрешенном использовании земельного участка (градостроительный план земельного участка)."]
[null,6,"Информация о предельных параметрах разрешенного строительства (реконструкции) объектов капитального строительства, соответствующих данному земельному участку."]
[null,7,"Необходимые виды ресурсов, получаемых от сетей инженерно-технического обеспечения, а также виды подключаемых сетей инженерно-технического обеспечения."]
[null,8,"Информация о планируемой величине необходимой подключаемой нагрузки (при наличии соответствующей информации). "]
[null,9,"Информация о планируемых сроках ввода в эксплуатацию объекта капитального строительства (при наличии соответствующей информации)."]
[null,10,"При наличии: топографическая карта земельного участка в масштабе 1:500 (для квартальной застройки 1:2000) в электронном виде в формате PDF с указанием всех наземных и подземных коммуникаций и сооружений."]
[]
[]
[]
[]
[null,"Заявитель",null,null,null,null,null,null,null,"дд.мм.гг"]
[null,null,"ФИО",null,null,null,"Подпись",null,null,"Дата"]
[]
[null,"М.П."]

{"sheet":"Запрос на выдачу ТУ ИП","index":2,"n_rows":113,"n_cols":12,"rows_kept":113,"cut":false,"hidden":false,"merged":[[14,1,15,1],[14,2,15,2],[14,4,15,5],[1,7,1,10],[3,1,3,10],[6,1,6,10],[7,1,7,10],[9,1,11,2],[9,6,9,7],[11,6,11,7],[9,8,9,9],[11,8,11,9],[4,1,4,10],[5,1,5,10],[8,1,8,10],[14,6,15,6],[14,7,15,9],[17,11,19,11],[19,2,19,10],[20,2,20,4],[20,6,20,10],[23,2,23,7],[21,2,21,7],[17,1,17,10],[25,2,25,10],[26,0,27,0],[26,9,26,10],[26,11,27,11],[27,2,27,10],[30,2,30,10],[32,2,32,4],[34,2,34,4],[34,7,34,10],[38,2,38,5],[38,7,38,10],[82,2,82,9],[42,2,42,10],[44,2,44,10],[48,1,48,10],[67,1,67,10],[69,8,69,9],[69,1,69,7],[73,1,73,2],[73,4,73,10],[75,1,75,10],[78,1,78,10],[80,1,80,10],[40,2,40,10],[103,2,103,9],[96,2,96,9],[97,2,97,9],[84,2,84,9],[86,2,86,9],[92,2,92,9],[93,2,93,9],[94,2,94,9],[95,2,95,9],[98,2,98,9],[99,2,99,9],[100,2,100,9],[101,2,101,9],[102,2,102,9],[104,2,104,9],[105,2,105,9],[108,2,108,10],[109,9,109,10],[110,2,110,3],[110,9,110,10]]}
[]
[null,null,null,null,null,null,null,"Генеральному директору\nООО \"ТСК Мосэнерго\"\nД.В. Горяинову"]
[]
[null,"ЗАПРОС О ПРЕДОСТАВЛЕНИИ ТЕХНИЧЕСКИХ УСЛОВИЙ  ПОДКЛЮЧЕНИЯ К СИСТЕМЕ ТЕПЛОСНАБЖЕНИЯ ООО \"ТСК МОСЭНЕРГО\"\nИ ИНФОРМАЦИИ О ПЛАТЕ ЗА ПОДКЛЮЧЕНИЕ ОБЪЕКТА КАПИТЕЛЬНОГО СТРОИТЕЛЬСТВА К СЕТЯМ ООО \"ТСК МОСЭНЕРГО\""]
[null,"(для индивидуального предпринимателя)"]
[null,"Уважаемый Денис Викторович!"]
[null,"Прошу Вас подготовить и выдать технические условия подключения к системе теплоснабжения ООО \"ТСК Мосэнерго\" реконструируемого / проектируемого объекта капитального строительства:"]
[]
[null,"(наименование объекта)"]
[null,"с планируемой величиной необходимой подключаемой нагрузки",null,null,"с учетом ГВС макс",null,null,null,"Гкал / час"]
[]
[null,null,null,null,"с учетом ГВС ср",null,null,null,"Гкал / час"]
[]
[null,"в связи с:"]
[null,"необходимостью подключения нового объекта",null,null,"увеличением тепловой нагрузки или тепловой мощности подключаемого объекта",null,null,"реконструкцией или модернизацией объекта без увеличения тепловой нагрузки или тепловой мощности",null,null,null,"Необходимо выбрать нужный вариант"]
[]
[]
[null,"1. Сведения о заявителе:"]
[]
[null,"Полное наименование организации"]
[]
[null,"Ф.И.О. руководителя организации"]
[]
[null,"Должность руководителя организации"]
[]
[null,"Местонахождение","Индекс, город, улица, дом, строение, корпус, владение"]
[]
[null,"Почтовый адрес","Индекс, город, улица, дом, строение, корпус, владение"]
[]
[]
[null,"Контактное лицо (Ф.И.О.)"]
[]
[null,"Контактный телефон организации",null,null,null,"Факс"]
[]
[null,"Контактный телефон мобильный",null,null,null,null,"e-mail"]
[]
[null,"2. Местонахождение подключаемого объекта"]
[]
[null,"Город",null,null,null,null,"Район"]
[]
[null,"Область"]
[]
[null,"Населённый пункт"]
[]
[null,"Улица"]
[]
[null,"Дом",null,null,"Владение",null,"Корпус",null,null,"Строение"]
[]
[null,"3. Технические параметры подключаемого объекта (заполняется при наличии соответствующей информации)"]
[null,"3.1 Таблица тепловых нагрузок по видам потребления",null,null,null,null,null,null,"поле не заполняется"]
[null,"(Заполняется одна из двух таблиц)"]
[null,"Для неподключенных строящихся (построенных) объектов:",null,null,null,null,null,null,"поле считается автоматически"]
[]
[null,"Наименование","Отопление","Вентиляция","Тепловые завесы","ГВС ср.","ГВС макс.","Кондиционирование","Прочее","Всего (с учетом ГВС ср.)","Всего (с учетом ГВС макс)"]
[null,"Тепловая нагрузка, Гкал / час",0,0,0,0,0,0,0,{"$f":"C55+D55+E55+F55+H55+I55","v":0},{"$f":"C55+D55+E55+G55+H55+I55","v":0}]
[null,"Температурный график"]
[null,"Схема подключения "]
[]
[null,"Для реконструируемых объектов:"]
[]
[null,"Наименование","Отопление","Вентиляция","Тепловые завесы","ГВС ср.","ГВС макс.","Кондиционирование","Прочее","Всего (с учетом ГВС ср.)","Всего (с учетом ГВС макс)"]
[null,"Тепловая нагрузка существующая, Гкал / час",0,0,0,0,0,0,0,{"$f":"C62+D62+E62+F62+H62+I62","v":0},{"$f":"C62+D62+E62+G62+H62+I62","v":0}]
[null,"Тепловая нагрузка после реконструкции, Гкал / час",0,0,0,0,0,0,0,{"$f":"C63+D63+E63+F63+H63+I63","v":0},{"$f":"C63+D63+E63+G63+H63+I63","v":0}]
[null,"Тепловая нагрузка дополнительная, Гкал / час",{"$f":"C63-C62","v":0},{"$f":"D63-D62","v":0},0,0,0,0,0,{"$f":"J63-J62","v":0},{"$f":"K63-K62","v":0}]
[null,"Температурный график"]
[null,"Схема подключения"]
[]
[null,"ВАЖНО: При подключении или реконструкции нескольких объектов (зданий/корпусов), подключенных от одного абонента, в Таблицу необходимо свести все  объекты по аналогии."]
[]
[null,"3.2 Планируемый срок ввода в эксплуатацию объекта капитального строительства\n(при наличии соответствующей информации)",null,null,null,null,null,null,"мм.гг"]
[]
[null,"3.3 Назначение объекта:"]
[]
[null,null,null,null,{"$f":"IF(B74=Списки!B25,Списки!C25,IF(B74=Списки!B26,Списки!C26,IF(B74=Списки!B27,Списки!C27,IF(B74=Списки!B28,Списки!C28,IF(B74=Списки!B29,Списки!C29,IF(B74=Списки!B30,Списки!C30,IF(B74=Списки!B31,Списки!C31,IF(B74=Списки!B32,Списки!C32,IF(B74=Списки!B33,Списки!C33,IF(B74=Списки!B34,Списки!C34,IF(B74=Списки!B35,Списки!C35,IF(B74=Списки!B36,Списки!C36,IF(B74=Списки!B37,Списки!C37,IF(B74=Списки!B38,Списки!C38,IF(B74=Списки!B39,Списки!C39,IF(B74=Списки!B40,Списки!C40,IF(B74=Списки!B41,Списки!C41,IF(B74=Списки!B42,Списки!C42,IF(B74=Списки!B43,Списки!C43,IF(B74=Списки!B44,Списки!C44,IF(B74=Списки!B45,Списки!C45,IF(B74=Списки!B46,Списки!B46,IF(B74=Списки!B47,Списки!C47,IF(B74=Списки!B48,Списки!C48,))))))))))))))))))))))))","v":"-"},null,null,null,null,null,null,"Необходимо выбрать из выпадающего списка"]
[]
[null,"4. Прошу предоставить информацию о плате за подключение объекта капитального строительства к системе теплоснабжения ООО \"ТСК Мосэнерго\"",null,null,null,null,null,null,null,null,null,"Необходимо выбрать нужный вариант"]
[]
[null,"Да",null,"Нет"]
[null,"Информация включает в себя данные о тарифе на подключение, утвержденном на момент выдачи технических условий в установленном законодательством Российской Федерации порядке; дату окончания срока действия указанного тарифа (если период действия этого тарифа истекает ранее окончания срока действия технических условий); дату повторного обращения за информацией о плате за подключение (если на момент выдачи технических условий тариф на подключение на период их действия не установлен)"]
[]
[null,"5. О готовности Технических условий подключения прошу уведомить меня:",null,null,null,null,null,null,null,null,null,"Необходимо выбрать нужный вариант"]
[]
[null,"по телефону:"]
[]
[null,"по электронной почте по адресу:"]
[]
[null,null,"В случае если Заявитель будет недоступен по вышеуказанному контакту, Технические условия подключения будут отправлены почтой по почтовому адресу, указанному в Разделе 1 настоящего Запроса"]
[]
[]
[]
[]
[null,null,"Перечень необходимых документов для выдачи Технических условий подключения:"]
[null,1,"Заверенные копии учредительных документов:"]
[null,"-","свидетельство о государственной регистрации физического лица в качестве индивидуального предпринимателя;"]
[null,"-","свидетельство о постановке на учет в налоговом органе индивидуального предпринимателя;"]
[null,"-","выписка из единого государственного реестра индивидуальных предпринимателей (далее – ЕГРИП). Дата выдачи выписки из ЕГРИП не должна превышать 30 дней на дату представления;"]
[null,2,"Доверенность представителя контрагента на право подписания запроса (в случае подписания запроса лицом, действующим на основании доверенности)."]
[null,3,"Правоустанавливающие документы на земельный участок (для правообладателя земельного участка)."]
[null,4,"Информация о границах земельного участка, на котором планируется осуществить строительство объекта капитального строительства или на котором расположен реконструируемый объект капитального строительства."]
[null,5,"Информация о разрешенном использовании земельного участка (градостроительный план земельного участка)."]
[null,6,"Информация о предельных параметрах разрешенного строительства (реконструкции) объектов капитального строительства, соответствующих данному земельному участку."]
[null,7,"Необходимые виды ресурсов, получаемых от сетей инженерно-технического обеспечения, а также виды подключаемых сетей инженерно-технического обеспечения."]
[null,8,"Информация о планируемой величине необходимой подключаемой нагрузки (при наличии соответствующей информации). "]
[null,9,"Информация о планируемых сроках ввода в эксплуатацию объекта капитального строительства (при наличии соответствующей информации)."]
[null,10,"При наличии: топографическая карта земельного участка в масштабе 1:500 (для квартальной застройки 1:2000) в электронном виде в формате PDF с указанием всех наземных и подземных коммуникаций и сооружений."]
[]
[]
[]
[]
[null,"Заявитель",null,null,null,null,null,null,null,"дд.мм.гг"]
[null,null,"ФИО",null,null,null,"Подпись",null,null,"Дата"]
[]
[null,"М.П."]

{"sheet":"Запрос на выдачу ТУ физ лицо","index":3,"n_rows":106,"n_cols":12,"rows_kept":106,"cut":false,"hidden":false,"merged":[[1,7,1,10],[3,1,3,10],[6,1,6,10],[7,1,7,10],[9,1,11,2],[9,6,9,7],[11,6,11,7],[9,8,9,9],[11,8,11,9],[4,1,4,10],[5,1,5,10],[8,1,8,10],[17,11,30,11],[30,2,30,4],[30,7,30,10],[14,1,15,1],[14,2,15,2],[14,4,15,5],[14,6,15,6],[14,7,15,9],[17,1,17,10],[69,1,69,2],[69,4,69,10],[34,2,34,5],[34,7,34,10],[38,2,38,10],[65,1,65,7],[40,2,40,10],[44,1,44,10],[63,1,63,10],[65,8,65,9],[36,2,36,10],[89,2,89,9],[71,1,71,10],[74,1,74,10],[76,1,76,10],[78,2,78,9],[80,2,80,9],[82,2,82,9],[22,0,23,0],[22,9,22,10],[23,2,23,10],[26,2,26,10],[28,2,28,4],[102,9,102,10],[103,2,103,3],[103,9,103,10],[19,2,19,10],[21,2,21,10],[94,2,94,9],[95,2,95,9],[96,2,96,9],[97,2,97,9],[98,2,98,9],[101,2,101,10],[90,2,90,9],[91,2,91,9],[92,2,92,9],[93,2,93,9],[88,2,88,9]]}
[]
[null,null,null,null,null,null,null,"Генеральному директору\nООО \"ТСК Мосэнерго\"\nД.В. Горяинову",null,null,null,"Комментарии для заполнения:"]
[]
[null,"ЗАПРОС О ПРЕДОСТАВЛЕНИИ ТЕХНИЧЕСКИХ УСЛОВИЙ  ПОДКЛЮЧЕНИЯ К СИСТЕМЕ ТЕПЛОСНАБЖЕНИЯ ООО \"ТСК МОСЭНЕРГО\"\nИ ИНФОРМАЦИИ О ПЛАТЕ ЗА ПОДКЛЮЧЕНИЕ ОБЪЕКТА КАПИТЕЛЬНОГО СТРОИТЕЛЬСТВА К СЕТЯМ ООО \"ТСК МОСЭНЕРГО\""]
[null,"(для физического лица)"]
[null,"Уважаемый Денис Викторович!"]
[null,"Прошу Вас подготовить и выдать технические условия подключения к системе теплоснабжения ООО \"ТСК Мосэнерго\" реконструируемого / проектируемого объекта капитального строительства:"]
[]
[null,"(наименование объекта)"]
[null,"с планируемой величиной необходимой подключаемой нагрузки",null,null,"с учетом ГВС макс",null,null,null,"Гкал / час"]
[]
[null,null,null,null,"с учетом ГВС ср",null,null,null,"Гкал / час"]
[]
[null,"в связи с:"]
[null,"необходимостью подключения нового объекта",null,null,"увеличением тепловой нагрузки или тепловой мощности подключаемого объекта",null,null,"реконструкцией или модернизацией объекта без увеличения тепловой нагрузки или тепловой мощности",null,null,null,"Необходимо выбрать нужный вариант"]
[]
[]
[null,"1. Сведения о заявителе:"]
[]
[null," Ф.И.О. Заявителя"]
[]
[null,"Местонахождение","Индекс, город, улица, дом, строение, корпус, владение"]
[]
[null,"Почтовый адрес","Индекс, город, улица, дом, строение, корпус, владение"]
[]
[]
[null,"Контактное лицо (Ф.И.О.)"]
[]
[null,"Контактный телефон организации",null,null,null,"Факс"]
[]
[null,"Контактный телефон мобильный",null,null,null,null,"e-mail"]
[]
[null,"2. Местонахождение подключаемого объекта"]
[]
[null,"Город",null,null,null,null,"Район"]
[]
[null,"Область"]
[]
[null,"Населённый пункт"]
[]
[null,"Улица"]
[]
[null,"Дом",null,null,"Владение",null,"Корпус",null,null,"Строение"]
[]
[null,"3. Технические параметры подключаемого объекта (заполняется при наличии соответствующей информации)"]
[null,"3.1 Таблица тепловых нагрузок по видам потребления",null,null,null,null,null,null,"поле не заполняется"]
[null,"(Заполняется одна из двух таблиц)"]
[null,"Для неподключенных строящихся (построенных) объектов:",null,null,null,null,null,null,"поле считается автоматически"]
[]
[null,"Наименование","Отопление","Вентиляция","Тепловые завесы","ГВС ср.","ГВС макс.","Кондиционирование","Прочее","Всего (с учетом ГВС ср.)","Всего (с учетом ГВС макс)"]
[null,"Тепловая нагрузка, Гкал / час",0,0,0,0,0,0,0,{"$f":"C51+D51+E51+F51+H51+I51","v":0},{"$f":"C51+D51+E51+G51+H51+I51","v":0}]
[null,"Температурный график"]
[null,"Схема подключения "]
[]
[null,"Для реконструируемых объектов:"]
[]
[null,"Наименование","Отопление","Вентиляция","Тепловые завесы","ГВС ср.","ГВС макс.","Кондиционирование","Прочее","Всего (с учетом ГВС ср.)","Всего (с учетом ГВС макс)"]
[null,"Тепловая нагрузка существующая, Гкал / час",0,0,0,0,0,0,0,{"$f":"C58+D58+E58+F58+H58+I58","v":0},{"$f":"C58+D58+E58+G58+H58+I58","v":0}]
[null,"Тепловая нагрузка после реконструкции, Гкал / час",0,0,0,0,0,0,0,{"$f":"C59+D59+E59+F59+H59+I59","v":0},{"$f":"C59+D59+E59+G59+H59+I59","v":0}]
[null,"Тепловая нагрузка дополнительная, Гкал / час",{"$f":"C59-C58","v":0},{"$f":"D59-D58","v":0},0,0,0,0,0,{"$f":"J59-J58","v":0},{"$f":"K59-K58","v":0}]
[null,"Температурный график"]
[null,"Схема подключения"]
[]
[null,"ВАЖНО: При подключении или реконструкции нескольких объектов (зданий/корпусов), подключенных от одного абонента, в Таблицу необходимо свести все  объекты по аналогии."]
[]
[null,"3.2 Планируемый срок ввода в эксплуатацию объекта капитального строительства\n(при наличии соответствующей информации)",null,null,null,null,null,null,"мм.гг"]
[]
[null,"3.3 Назначение объекта:"]
[]
[null,null,null,null,{"$f":"IF(B70=Списки!B25,Списки!C25,IF(B70=Списки!B26,Списки!C26,IF(B70=Списки!B27,Списки!C27,IF(B70=Списки!B28,Списки!C28,IF(B70=Списки!B29,Списки!C29,IF(B70=Списки!B30,Списки!C30,IF(B70=Списки!B31,Списки!C31,IF(B70=Списки!B32,Списки!C32,IF(B70=Списки!B33,Списки!C33,IF(B70=Списки!B34,Списки!C34,IF(B70=Списки!B35,Списки!C35,IF(B70=Списки!B36,Списки!C36,IF(B70=Списки!B37,Списки!C37,IF(B70=Списки!B38,Списки!C38,IF(B70=Списки!B39,Списки!C39,IF(B70=Списки!B40,Списки!C40,IF(B70=Списки!B41,Списки!C41,IF(B70=Списки!B42,Списки!C42,IF(B70=Списки!B43,Списки!C43,IF(B70=Списки!B44,Списки!C44,IF(B70=Списки!B45,Списки!C45,IF(B70=Списки!B46,Списки!B46,IF(B70=Списки!B47,Списки!C47,IF(B70=Списки!B48,Списки!C48,))))))))))))))))))))))))","v":"-"},null,null,null,null,null,null,"Необходимо выбрать из выпадающего списка"]
[]
[null,"4. Прошу предоставить информацию о плате за подключение объекта капитального строительства к системе теплоснабжения ООО \"ТСК Мосэнерго\"",null,null,null,null,null,null,null,null,null,"Необходимо выбрать нужный вариант"]
[]
[null,"Да",null,"Нет"]
[null,"Информация включает в себя данные о тарифе на подключение, утвержденном на момент выдачи технических условий в установленном законодательством Российской Федерации порядке; дату окончания срока действия указанного тарифа (если период действия этого тарифа истекает ранее окончания срока действия технических условий); дату повторного обращения за информацией о плате за подключение (если на момент выдачи технических условий тариф на подключение на период их действия не установлен)"]
[]
[null,"5. О готовности Технических условий подключения прошу уведомить меня:",null,null,null,null,null,null,null,null,null,"Необходимо выбрать нужный вариант"]
[]
[null,"по телефону:"]
[]
[null,"по электронной почте по адресу:"]
[]
[null,null,"В случае если Заявитель будет недоступен по вышеуказанному контакту, Технические условия подключения будут отправлены почтой по почтовому адресу, указанному в Разделе 1 настоящего Запроса"]
[]
[]
[]
[]
[null,null,"Перечень необходимых документов для выдачи Технических условий подключения:"]
[null,1,"Заверенная копия паспорта"]
[null,2,"Доверенность представителя контрагента на право подписания запроса (в случае подписания запроса лицом, действующим на основании доверенности)."]
[null,3,"Правоустанавливающие документы на земельный участок (для правообладателя земельного участка)."]
[null,4,"Информация о границах земельного участка, на котором планируется осуществить строительство объекта капитального строительства или на котором расположен реконструируемый объект капитального строительства."]
[null,5,"Информация о разрешенном использовании земельного участка (градостроительный план земельного участка)."]
[null,6,"Информация о предельных параметрах разрешенного строительства (реконструкции) объектов капитального строительства, соответствующих данному земельному участку."]
[null,7,"Необходимые виды ресурсов, получаемых от сетей инженерно-технического обеспечения, а также виды подключаемых сетей инженерно-технического обеспечения."]
[null,8,"Информация о планируемой величине необходимой подключаемой нагрузки (при наличии соответствующей информации). "]
[null,9,"Информация о планируемых сроках ввода в эксплуатацию объекта капитального строительства (при наличии соответствующей информации)."]
[null,10,"При наличии: топографическая карта земельного участка в масштабе 1:500 (для квартальной застройки 1:2000) в электронном виде в формате PDF с указанием всех наземных и подземных коммуникаций и сооружений (не прилагается в случае, если заявителем является физическое лицо, осуществляющее создание (реконструкцию) объекта индивидуального жилищного строительства)."]
[]
[]
[]
[]
[null,"Заявитель",null,null,null,null,null,null,null,"дд.мм.гг"]
[null,null,"ФИО",null,null,null,"Подпись",null,null,"Дата"]
[]
[null,"М.П."]

{"sheet":"Списки","index":4,"n_rows":58,"n_cols":3,"rows_kept":58,"cut":false,"hidden":true,"merged":[]}
[]
[null,"Схема подключения"]
[]
[null,"Зависимая"]
[null,"Независимая"]
[]
[null,"Округ"]
[]
[null,"ЦАО"]
[null,"САО"]
[null,"СВАО"]
[null,"ВАО"]
[null,"ЮВАО"]
[null,"ЮАО"]
[null,"ЮЗАО"]
[null,"ЗАО"]
[null,"СЗАО"]
[null,"Новомосковский АО"]
[null,"Троицкий АО"]
[null,"Зеленоградский АО"]
[]
[null,"Назначение объекта"]
[]
["№","Категория","Комментарий"]
[null,null,"-"]
[1,"Жилые дома","Жилые дома"]
[2,"Общественные и административно-бытовые помещения","Гостиницы, общежития, пансионаты, д/о, мотели"]
[3,"ДОУ","Детсады, ясли"]
[4,"Объекты спортивного назначения","Стадионы, ФОК, бассейны, спортзалы, спортшколы"]
[5,"Здравоохранение","Больницы, родильные дома, поликлиники, амбулатории, госпитали, морги"]
[6,"Образование","Школы, интернаты, дом ребенка, ПТУ, училища, Вузы, амбулатории"]
[7,"Административно-офисные помещения","МФК, офисы, деловые центры, типографии, почта"]
[8,"Социально-бытовые объекты","Прачечные, химчистки, душевые, бани,парикмахерские, общественные туалеты"]
[9,"Объекты торгового назначения","Магазин, торговые центры, торговые залы, аптеки, вещевой рынок, ларьки, торговые палатки"]
[10,"Досугово-развлекательные учреждения","Дом культуры, интернет-кафе, дискотеки, клубы"]
[11,"Культурные объекты","Театры, кинотеатры, музеи, постоянно действующие выставочные комплексы (центры)"]
[12,"Предприятия общественного питания","Столовые, кафе, рестораны, пиццерии, хлебопекарня"]
[13,"Объекты производственного назначения","Заводы, цеха, станции, тепловые пункты, депо, гаражи,ремонтно-механические мастерские, склады, АЗС,СТО"]
[14,"Объекты городской инфраструктуры","Вокзалы, парки, оранжереи, теплицы, сельхоз.рынки"]
[15,"Транспортная инфраструктура","Дороги, эстакады, мосты, тоннели, путепроводы, жел.дор.пути"]
[16,"Религиозные сооружения","Храм, церковь, синагога, мечеть, монастырь, часовня, кирха"]
[17,"Объекты защиты населения","Полиция, мчс, военные, ГИБДД, вневедомственная охрана, ЧОПы, военная полиция"]
[18,"Объекты складского назначения","Склады, навесы, ангары, сараи"]
[19,"Нежилые помещения","Объекты заявлены как нежилые помещение без уточнения дальнейшего назначения"]
[20,"Комплексная застройка","Большая застройка, куда попадают  объекты из разных категорий"]
[21,"Временные объекты","бытовки, строительные городки, объекты механизации"]
[22,"Объекты незавершенного строительства","незавершенные объекты для проведения отделочных и пуско-наладочных работ"]
[23,"Прочее","Все, что не попало в категории выше"]
[]
[null,"Отделения сбыта"]
[]
[null,"Отделение сбыта №1 - г. Москва, ул. Складочная, д. 1А, стр. 1"]
[null,"Отделение сбыта №2 - г. Москва, ул. Бибиревская, д. 8 кор. 1"]
[null,"Отделение сбыта №3 - г. Москва, ул. Шарикоподшипниковская, д.1"]
[null,"Отделение сбыта №4 - г.Москва, пр. Андропова, д. 36 к. 2"]
[null,"Отделение сбыта №5 - г.Москва, ул.Героев Панфиловцев, д.10, к. 1"]
[null,"Отделение сбыта №6 - г.Зеленоград, корп. 1111А"]
[null,"Отделение сбыта №7 - г.Московский, 3 мкр., д.2а"]